[Event "FIDE WCCC Girls-10 2024"]
[Site "Montesilvano"]
[Date "2024.11.23"]
[Round "8.19"]
[White "Jaksa, Ema"]
[Black "Malcheva, Niya"]
[Result "1-0"]
[Annotator "NA RC"]
[ECO "B10"]
[WhiteElo "1635"]
[BlackElo "1620"]
[PlyCount "112"]
[EventDate "2024.11.18"]
[EventType "swiss"]
[EventCountry "ITA"]
[SourceTitle "playchess.com"]
[Source "ChessBase"]
[SourceQuality "1"]
[TimeControl "5400+30"]

1. e4 {[%emt 0:00:20]} c6 {[%emt 0:00:50]} 2. Nf3 {[%emt 0:00:28]} d5 {[%emt 0:00:15]} 3. d3 {[%emt 0:01:01]} Bg4 {[%emt 0:00:48]} 4. h3 {[%emt 0:00:58]} Bh5 {[%emt 0:00:05]} 5. Qe2 {[%emt 0:01:03]} e6 {[%emt 0:01:48]} 6. g4 {[%emt 0:01:02]} Bg6 {[%emt 0:00:16]} 7. h4 {[%emt 0:01:48]} dxe4 {[%emt 1:29:58]} 8. dxe4 {[%emt 0:00:47]} h5 {[%emt 0:00:00]} 9. g5 {[%emt 0:02:57]} Nd7 {[%emt 0:00:00]} 10. Nbd2 {[%emt 0:17:43]} Nc5 {[%emt 0:00:00]} 11. Ne5 {[%emt 0:11:45]} Ne7 {[%emt 0:00:00]} 12. Bg2 {[%emt 0:06:18]} Nd7 {[%emt 0:00:00]} 13. Nd3 {[%emt 0:08:57]} c5 {[%emt 0:00:00]} 14. Nc4 {[%emt 0:07:07]} Nc6 {[%emt 0:03:30]} 15. Bf4 {[%emt 0:07:32]} Nb6 {[%emt 0:00:00]} 16. Nxb6 {[%emt 0:08:50]} Qxb6 {[%emt 0:00:00]} 17. c3 {[%emt 0:02:15]} Qb5 {[%emt 0:00:00]} 18. Ne5 {[%emt 0:02:01]} Qxe2+ {[%emt 0:00:00]} 19. Kxe2 {[%emt 0:00:11]} Nxe5 {[%emt 0:00:00]} 20. Bxe5 {[%emt 0:00:05]} Rg8 {[%emt 0:00:00]} 21. Rad1 {[%emt 0:01:00]} Be7 {[%emt 0:00:00]} 22. Bd6 {[%emt 0:03:48]} Bxd6 {[%emt 0:00:00]} 23. Rxd6 {[%emt 0:00:08]} Ke7 {[%emt 0:00:00]} 24. Rhd1 {[%emt 0:00:42]} Rgd8 {[%emt 0:00:00]} 25. e5 {[%emt 0:00:45]} Rxd6 {[%emt 0:00:00]} 26. Rxd6 {[%emt 0:02:35]} Rb8 {[%emt 0:00:00]} 27. Ke3 {[%emt 0:00:42]} b6 {[%emt 0:00:00]} 28. Be4 {[%emt 0:02:04]} Bxe4 {[%emt 0:00:00]} 29. Kxe4 {[%emt 0:00:04]} Rd8 {[%emt 0:00:00]} 30. Rxd8 {[%emt 0:01:42]} Kxd8 {[%emt 0:00:00]} 31. f4 {[%emt 0:00:15]} g6 {[%emt 0:00:00]} 32. b4 {[%emt 0:00:51]} Kc7 {[%emt 0:00:00]} 33. b5 {[%emt 0:01:11]} Kb7 {[%emt 0:00:00]} 34. Kd3 {[%emt 0:01:55]} a6 {[%emt 0:00:00]} 35. bxa6+ {[%emt 0:02:11]} Kxa6 {[%emt 0:00:00]} 36. Kc4 {[%emt 0:00:14]} Ka5 {[%emt 0:00:00]} 37. Kb3 {[%emt 0:00:15]} b5 {[%emt 0:00:00]} 38. c4 {[%emt 0:00:29]} Kb6 {[%emt 0:00:00]} 39. cxb5 {[%emt 0:00:13]} Kxb5 {[%emt 0:00:00]} 40. a4+ {[%emt 0:00:11]} Ka5 {[%emt 0:00:00]} 41. Kc4 {[%emt 0:00:07]} Kxa4 {[%emt 0:00:00]} 42. Kxc5 {[%emt 0:00:06]} Kb3 {[%emt 0:00:00]} 43. Kd6 {[%emt 0:00:07]} Kc4 {[%emt 0:00:00]} 44. Ke7 {[%emt 0:00:07]} Kd4 {[%emt 0:00:00]} 45. Kxf7 {[%emt 0:00:05]} Ke4 {[%emt 0:00:00]} 46. Kxe6 {[%emt 0:00:11]} Kxf4 {[%emt 0:00:00]} 47. Kf6 {[%emt 0:00:04]} Kg4 {[%emt 0:00:00]} 48. e6 {[%emt 0:00:04]} Kxh4 {[%emt 0:00:00]} 49. e7 {[%emt 0:00:01]} Kg3 {[%emt 0:00:00]} 50. e8=Q {[%emt 0:00:05]} h4 {[%emt 0:00:00]} 51. Kxg6 {[%emt 0:00:37]} h3 {[%emt 0:00:00]} 52. Qh8 {[%emt 0:00:03]} h2 {[%emt 0:00:00]} 53. Kf7 {[%emt 0:00:04]} Kg2 {[%emt 0:00:00]} 54. g6 {[%emt 0:00:03]} h1=Q {[%emt 0:00:00]} 55. Qxh1+ {[%emt 0:00:03]} Kxh1 {[%emt 0:00:00]} 56. g7 {[%emt 0:00:01]} Kg2 {[%emt 0:00:00]} 1-0

[Event "FIDE WCCC Girls-10 2024"]
[Site "Montesilvano"]
[Date "2024.11.23"]
[Round "8.20"]
[White "Xin, Lisa J."]
[Black "Bayramova, Aya"]
[Result "0-1"]
[Annotator "NA RC"]
[ECO "D04"]
[WhiteElo "1602"]
[BlackElo "1634"]
[PlyCount "156"]
[EventDate "2024.11.18"]
[EventType "swiss"]
[EventCountry "ITA"]
[SourceTitle "playchess.com"]
[Source "ChessBase"]
[SourceQuality "1"]
[TimeControl "5400+30"]

1. d4 {[%emt 0:00:03]} d5 {[%emt 0:00:07]} 2. Nf3 {[%emt 0:00:07]} Nf6 {[%emt 0:00:18]} 3. e3 {[%emt 0:00:05]} c5 {[%emt 0:01:07]} 4. b3 {[%emt 0:00:12]} Nc6 {[%emt 0:00:38]} 5. Bb2 {[%emt 0:00:13]} Bg4 {[%emt 0:01:01]} 6. Nbd2 {[%emt 0:00:16]} cxd4 {[%emt 0:00:58]} 7. exd4 {[%emt 0:00:10]} Qc7 {[%emt 0:00:40]} 8. a3 {[%emt 0:00:30]} e6 {[%emt 0:00:26]} 9. Bd3 {[%emt 0:00:24]} Bd6 {[%emt 0:00:19]} 10. h3 {[%emt 0:02:43]} Bh5 {[%emt 0:01:58]} 11. O-O {[%emt 0:07:35]} O-O {[%emt 0:01:25]} 12. Qe1 {[%emt 0:07:24]} Bg6 {[%emt 0:02:09]} 13. Bxg6 {[%emt 0:00:33]} hxg6 {[%emt 0:00:31]} 14. Ne5 {[%emt 0:02:02]} Rac8 {[%emt 0:01:52]} 15. c4 {[%emt 0:11:07]} Nd7 {[%emt 0:03:14]} 16. Nxg6 {[%emt 0:13:03]} fxg6 {[%emt 0:01:52]} 17. Qxe6+ {[%emt 0:00:10]} Kh7 {[%emt 0:00:49]} 18. Qxd5 {[%emt 0:01:50]} Nf6 {[%emt 0:00:38]} 19. Qg5 {[%emt 0:04:24]} Bh2+ {[%emt 0:02:46]} 20. Kh1 {[%emt 0:00:13]} Qf4 {[%emt 0:00:06]} 21. Qxf4 {[%emt 0:00:22]} Bxf4 {[%emt 0:00:06]} 22. Nf3 {[%emt 0:00:42]} Rfe8 {[%emt 0:00:24]} 23. Rfe1 {[%emt 0:02:13]} Ne4 {[%emt 0:01:05]} 24. Kg1 {[%emt 0:03:14]} Nd2 {[%emt 0:01:11]} 25. Nxd2 {[%emt 0:01:17]} Bxd2 {[%emt 0:00:08]} 26. Rxe8 {[%emt 0:03:53]} Rxe8 {[%emt 0:00:19]} 27. Rd1 {[%emt 0:07:02]} Bg5 {[%emt 0:02:00]} 28. Kf1 {[%emt 0:03:16]} Bf6 {[%emt 0:00:21]} 29. Ba1 {[%emt 0:02:02]} Rd8 {[%emt 0:02:18]} 30. d5 {[%emt 0:00:14]} Bxa1 {[%emt 0:00:08]} 31. Rxa1 {[%emt 0:00:04]} Nd4 {[%emt 0:00:22]} 32. b4 {[%emt 0:05:26]} Kg8 {[%emt 0:02:35]} 33. Rd1 {[%emt 0:04:30]} Nf5 {[%emt 0:00:50]} 34. Ke2 {[%emt 0:03:30]} Kf7 {[%emt 0:00:08]} 35. Kf3 {[%emt 0:07:17]} Nd6 {[%emt 0:00:34]} 36. Rc1 {[%emt 0:05:11]} Kf6 {[%emt 0:01:48]} 37. g4 {[%emt 0:01:59]} Ke5 {[%emt 0:01:29]} 38. Ke3 {[%emt 0:00:54]} g5 {[%emt 0:01:32]} 39. c5 {[%emt 0:00:52]} Nb5 {[%emt 0:01:00]} 40. d6 {[%emt 0:00:53]} Nxa3 {[%emt 0:00:30]} 41. Rc3 {[%emt 0:02:19]} Nb5 {[%emt 0:00:41]} 42. Rc4 {[%emt 0:00:34]} Rd7 {[%emt 0:03:30]} 43. f4+ {[%emt 0:00:30]} gxf4+ {[%emt 0:00:56]} 44. Rxf4 {[%emt 0:00:04]} Nc3 {[%emt 0:03:25]} 45. Rf5+ {[%emt 0:00:58]} Ke6 {[%emt 0:00:05]} 46. Kd4 {[%emt 0:00:30]} Nb5+ {[%emt 0:06:18]} 47. Kc4 {[%emt 0:00:21]} a6 {[%emt 0:00:09]} 48. h4 {[%emt 0:00:23]} Na7 {[%emt 0:06:34]} 49. h5 {[%emt 0:00:52]} Nc6 {[%emt 0:00:05]} 50. Rg5 {[%emt 0:00:32]} Ne5+ {[%emt 0:00:39]} 51. Kc3 {[%emt 0:00:30]} Rf7 {[%emt 0:00:54]} 52. Kb3 {[%emt 0:00:28]} Rf3+ {[%emt 0:00:42]} 53. Ka4 {[%emt 0:00:13]} Kf6 {[%emt 0:00:29]} 54. Rf5+ {[%emt 0:00:26]} Rxf5 {[%emt 0:00:14]} 55. gxf5 {[%emt 0:00:05]} Kxf5 {[%emt 0:00:06]} 56. Ka5 {[%emt 0:00:16]} Nc4+ {[%emt 0:01:49]} 57. Ka4 {[%emt 0:00:12]} Ke6 {[%emt 0:00:26]} 58. b5 {[%emt 0:00:58]} Nxd6 {[%emt 0:02:14]} 59. cxd6 {[%emt 0:00:35]} Kxd6 {[%emt 0:00:01]} 60. b6 {[%emt 0:00:18]} Kc6 {[%emt 0:00:11]} 61. Ka5 {[%emt 0:00:04]} Kc5 {[%emt 0:00:05]} 62. Ka4 {[%emt 0:00:15]} Kxb6 {[%emt 0:01:08]} 63. Kb4 {[%emt 0:00:06]} a5+ {[%emt 0:00:03]} 64. Kc4 {[%emt 0:00:03]} Kc6 {[%emt 0:00:04]} 65. Kd4 {[%emt 0:00:11]} a4 {[%emt 0:00:12]} 66. Ke5 {[%emt 0:00:06]} a3 {[%emt 0:00:04]} 67. Ke6 {[%emt 0:00:06]} a2 {[%emt 0:00:03]} 68. Kf7 {[%emt 0:00:05]} a1=Q {[%emt 0:00:05]} 69. Kg6 {[%emt 0:00:07]} Qf6+ {[%emt 0:00:10]} 70. Kh7 {[%emt 0:00:06]} b5 {[%emt 0:00:04]} 71. Kg8 {[%emt 0:00:11]} b4 {[%emt 0:00:05]} 72. h6 {[%emt 0:00:04]} Qxh6 {[%emt 0:00:11]} 73. Kf7 {[%emt 0:00:07]} b3 {[%emt 0:00:05]} 74. Kg8 {[%emt 0:00:05]} b2 {[%emt 0:00:05]} 75. Kf7 {[%emt 0:00:03]} Qf6+ {[%emt 0:00:06]} 76. Kg8 {[%emt 0:00:06]} b1=Q {[%emt 0:00:08]} 77. Kh8 {[%emt 0:00:08]} g5+ {[%emt 0:00:04]} 78. Kg8 {[%emt 0:00:15]} Qbg6# {[%emt 0:00:06]} 0-1

[Event "FIDE WCCC Girls-10 2024"]
[Site "Montesilvano"]
[Date "2024.11.23"]
[Round "8.21"]
[White "Tykalova, Barbora"]
[Black "Bjerregaard Hagen, Frida"]
[Result "1-0"]
[Annotator "NA RC"]
[ECO "C13"]
[WhiteElo "1596"]
[BlackElo "1815"]
[PlyCount "99"]
[EventDate "2024.11.18"]
[EventType "swiss"]
[EventCountry "ITA"]
[SourceTitle "playchess.com"]
[Source "ChessBase"]
[SourceQuality "1"]
[TimeControl "5400+30"]

1. e4 {[%emt 0:00:04]} e6 {[%emt 0:00:11]} 2. d4 {[%emt 0:00:39]} d5 {[%emt 0:00:07]} 3. Nc3 {[%emt 0:00:29]} Nf6 {[%emt 0:00:15]} 4. Bg5 {[%emt 0:00:37]} dxe4 {[%emt 0:00:09]} 5. Nxe4 {[%emt 0:00:31]} Nbd7 {[%emt 0:00:15]} 6. Bd3 {[%emt 0:02:54]} h6 {[%emt 0:02:41]} 7. Bh4 {[%emt 0:02:10]} g5 {[%emt 0:02:41]} 8. Bg3 {[%emt 0:01:41]} Nxe4 {[%emt 0:00:25]} 9. Bxe4 {[%emt 0:00:31]} f5 {[%emt 0:00:15]} 10. Bd3 {[%emt 0:01:54]} f4 {[%emt 0:00:30]} 11. Bxf4 {[%emt 0:02:02]} gxf4 {[%emt 0:00:19]} 12. Qh5+ {[%emt 0:02:02]} Ke7 {[%emt 0:00:16]} 13. Qh4+ {[%emt 0:02:31]} Nf6 {[%emt 0:01:59]} 14. Nf3 {[%emt 0:02:30]} Rg8 {[%emt 0:05:44]} 15. Qxf4 {[%emt 0:06:20]} Qd6 {[%emt 0:06:21]} 16. Qe3 {[%emt 0:04:51]} Bd7 {[%emt 0:10:21]} 17. Nh4 {[%emt 0:04:36]} Kd8 {[%emt 0:02:58]} 18. Ng6 {[%emt 0:03:53]} Bc6 {[%emt 0:05:59]} 19. Nxf8 {[%emt 0:02:06]} Rxf8 {[%emt 0:00:27]} 20. Qxh6 {[%emt 0:03:23]} Ke7 {[%emt 0:03:55]} 21. O-O-O {[%emt 0:02:55]} a5 {[%emt 0:03:50]} 22. Rhe1 {[%emt 0:03:43]} Nd5 {[%emt 0:04:01]} 23. Kb1 {[%emt 0:06:08]} Rf6 {[%emt 0:04:05]} 24. Qg7+ {[%emt 0:03:42]} Rf7 {[%emt 0:01:01]} 25. Qg5+ {[%emt 0:01:37]} Kd7 {[%emt 0:03:06]} 26. Re2 {[%emt 0:07:53]} Qb4 {[%emt 0:03:59]} 27. Ka1 {[%emt 0:05:31]} a4 {[%emt 0:05:00]} 28. a3 {[%emt 0:01:32]} Qa5 {[%emt 0:03:25]} 29. Re5 {[%emt 0:02:44]} Qa7 {[%emt 0:02:22]} 30. Rde1 {[%emt 0:01:41]} Re7 {[%emt 0:02:46]} 31. c4 {[%emt 0:04:15]} Qxd4 {[%emt 0:09:57]} 32. cxd5 {[%emt 0:01:27]} Bxd5 {[%emt 0:00:46]} 33. Rd1 {[%emt 0:03:29]} Qxf2 {[%emt 0:01:39]} 34. Bb5+ {[%emt 0:00:49]} c6 {[%emt 0:00:31]} 35. Rdxd5+ {[%emt 0:00:56]} Kc8 {[%emt 0:01:49]} 36. Qxe7 {[%emt 0:00:21]} cxd5 {[%emt 0:02:35]} 37. Qe8+ {[%emt 0:01:39]} Kc7 {[%emt 0:00:06]} 38. Qxa8 {[%emt 0:00:29]} Qd4 {[%emt 0:03:00]} 39. Re1 {[%emt 0:01:52]} Qd2 {[%emt 0:00:31]} 40. Rf1 {[%emt 0:00:37]} Qxg2 {[%emt 0:00:11]} 41. Rf7+ {[%emt 0:01:17]} Kb6 {[%emt 0:00:28]} 42. Rxb7+ {[%emt 0:00:22]} Kc5 {[%emt 0:00:07]} 43. Qc8+ {[%emt 0:00:36]} Kd4 {[%emt 0:00:05]} 44. Qc3+ {[%emt 0:00:30]} Ke4 {[%emt 0:00:09]} 45. Bd3+ {[%emt 0:00:14]} Kf4 {[%emt 0:00:16]} 46. Rf7+ {[%emt 0:00:36]} Kg5 {[%emt 0:00:14]} 47. Qf6+ {[%emt 0:00:44]} Kh5 {[%emt 0:00:54]} 48. Bf1 {[%emt 0:01:28]} Qxb2+ {[%emt 0:01:03]} 49. Kxb2 {[%emt 0:00:16]} d4 {[%emt 0:00:02]} 50. Be2# {[%emt 0:00:14]} 1-0

[Event "FIDE WCCC Girls-10 2024"]
[Site "Montesilvano"]
[Date "2024.11.23"]
[Round "8.22"]
[White "Kravchuk, Daria"]
[Black "Rzadkowska, Lila"]
[Result "1/2-1/2"]
[Annotator "NA RC"]
[ECO "C45"]
[WhiteElo "1569"]
[BlackElo "1765"]
[PlyCount "108"]
[EventDate "2024.11.18"]
[EventType "swiss"]
[EventCountry "ITA"]
[SourceTitle "playchess.com"]
[Source "ChessBase"]
[SourceQuality "1"]
[TimeControl "5400+30"]

1. e4 {[%emt 0:00:09]} e5 {[%emt 0:00:07]} 2. Nf3 {[%emt 0:00:10]} Nc6 {[%emt 0:00:06]} 3. d4 {[%emt 0:00:15]} exd4 {[%emt 0:00:11]} 4. Nxd4 {[%emt 0:00:26]} Nf6 {[%emt 0:00:21]} 5. Nxc6 {[%emt 0:00:35]} bxc6 {[%emt 0:00:27]} 6. Bd3 {[%emt 0:01:03]} Bb4+ {[%emt 0:00:52]} 7. Nd2 {[%emt 0:04:48]} O-O {[%emt 0:01:52]} 8. O-O {[%emt 0:00:34]} d5 {[%emt 0:02:09]} 9. exd5 {[%emt 0:03:19]} cxd5 {[%emt 0:00:10]} 10. a3 {[%emt 0:01:12]} Bd6 {[%emt 0:03:29]} 11. Nf3 {[%emt 0:02:03]} Bg4 {[%emt 0:01:16]} 12. Bg5 {[%emt 0:04:12]} Re8 {[%emt 0:03:24]} 13. h3 {[%emt 0:02:42]} Bh5 {[%emt 0:00:14]} 14. Bb5 {[%emt 0:05:25]} Rf8 {[%emt 0:01:05]} 15. Bc6 {[%emt 0:04:53]} Rb8 {[%emt 0:00:12]} 16. Bxd5 {[%emt 0:00:42]} Be7 {[%emt 0:00:34]} 17. Bb3 {[%emt 0:01:58]} Ne4 {[%emt 0:06:30]} 18. Bxe7 {[%emt 0:12:58]} Qxe7 {[%emt 0:00:13]} 19. Re1 {[%emt 0:00:40]} Rfe8 {[%emt 0:08:29]} 20. Qe2 {[%emt 0:01:47]} Qf6 {[%emt 0:03:39]} 21. Ba4 {[%emt 0:03:30]} c6 {[%emt 0:03:35]} 22. b4 {[%emt 0:06:52]} Kf8 {[%emt 0:09:22]} 23. Bb3 {[%emt 0:13:37]} Rbd8 {[%emt 0:01:11]} 24. Qe3 {[%emt 0:04:01]} Re7 {[%emt 0:09:14]} 25. Rad1 {[%emt 0:04:16]} Nd2 {[%emt 0:11:20]} 26. Ng5 {[%emt 0:08:43]} Rxe3 {[%emt 0:09:39]} 27. Nxh7+ {[%emt 0:00:09]} Kg8 {[%emt 0:00:45]} 28. Nxf6+ {[%emt 0:00:08]} gxf6 {[%emt 0:00:10]} 29. fxe3 {[%emt 0:00:18]} Bxd1 {[%emt 0:00:11]} 30. Rxd1 {[%emt 0:00:08]} Nf3+ {[%emt 0:00:16]} 31. gxf3 {[%emt 0:00:06]} Rxd1+ {[%emt 0:00:04]} 32. Kf2 {[%emt 0:00:54]} Ra1 {[%emt 0:01:01]} 33. a4 {[%emt 0:00:12]} Kg7 {[%emt 0:00:59]} 34. e4 {[%emt 0:01:05]} Kg6 {[%emt 0:01:29]} 35. h4 {[%emt 0:02:48]} Kh5 {[%emt 0:03:17]} 36. Kg3 {[%emt 0:01:29]} Rg1+ {[%emt 0:00:14]} 37. Kf4 {[%emt 0:00:27]} Rf1 {[%emt 0:01:40]} 38. Bxf7+ {[%emt 0:03:45]} Kxh4 {[%emt 0:00:08]} 39. Be8 {[%emt 0:01:29]} Rb1 {[%emt 0:00:31]} 40. c3 {[%emt 0:01:00]} Rb3 {[%emt 0:00:20]} 41. Bxc6 {[%emt 0:00:14]} Rxc3 {[%emt 0:00:34]} 42. b5 {[%emt 0:02:39]} Ra3 {[%emt 0:00:31]} 43. a5 {[%emt 0:00:14]} Rxa5 {[%emt 0:00:25]} 44. Kf5 {[%emt 0:00:07]} a6 {[%emt 0:01:04]} 45. Kxf6 {[%emt 0:00:07]} axb5 {[%emt 0:00:06]} 46. Bd5 {[%emt 0:01:02]} b4 {[%emt 0:02:06]} 47. Bf7 {[%emt 0:04:11]} Kg3 {[%emt 0:05:41]} 48. e5 {[%emt 0:00:27]} Kf4 {[%emt 0:01:08]} 49. e6 {[%emt 0:00:34]} Rf5+ {[%emt 0:00:10]} 50. Kg7 {[%emt 0:00:31]} Re5 {[%emt 0:00:40]} 51. Kf8 {[%emt 0:00:24]} b3 {[%emt 0:00:42]} 52. e7 {[%emt 0:00:10]} b2 {[%emt 0:00:08]} 53. Bg6 {[%emt 0:00:09]} Kg5 {[%emt 0:00:59]} 54. Be4 {[%emt 0:01:06]} Kf4 {[%emt 0:03:31]} 1/2-1/2

[Event "FIDE WCCC Girls-10 2024"]
[Site "Montesilvano"]
[Date "2024.11.23"]
[Round "8.23"]
[White "Wang, Mi Ya Mia"]
[Black "Billod-Laillet, Camille"]
[Result "1-0"]
[Annotator "NA RC"]
[ECO "C24"]
[WhiteElo "1552"]
[BlackElo "1732"]
[PlyCount "87"]
[EventDate "2024.11.18"]
[EventType "swiss"]
[EventCountry "ITA"]
[SourceTitle "playchess.com"]
[Source "ChessBase"]
[SourceQuality "1"]
[TimeControl "5400+30"]

1. e4 {[%emt 0:00:02]} e5 {[%emt 0:00:07]} 2. Nf3 {[%emt 0:00:13]} Nc6 {[%emt 0:00:12]} 3. Bc4 {[%emt 0:00:21]} Nf6 {[%emt 0:00:10]} 4. d3 {[%emt 0:00:23]} d5 {[%emt 0:00:24]} 5. exd5 {[%emt 0:00:39]} Nxd5 {[%emt 0:00:07]} 6. c3 {[%emt 0:00:41]} Be7 {[%emt 0:05:05]} 7. Qb3 {[%emt 0:04:22]} Na5 {[%emt 0:08:37]} 8. Qa4+ {[%emt 0:02:05]} Nc6 {[%emt 0:04:45]} 9. Nxe5 {[%emt 0:13:07]} Qd6 {[%emt 0:04:45]} 10. Nxc6 {[%emt 0:03:08]} bxc6 {[%emt 0:00:27]} 11. O-O {[%emt 0:02:16]} Nb6 {[%emt 0:01:44]} 12. Qb3 {[%emt 0:01:52]} Nxc4 {[%emt 0:00:43]} 13. Qxc4 {[%emt 0:00:39]} O-O {[%emt 0:00:56]} 14. Bf4 {[%emt 0:03:06]} Qg6 {[%emt 0:02:51]} 15. Bxc7 {[%emt 0:06:30]} Bh3 {[%emt 0:00:50]} 16. Bg3 {[%emt 0:00:24]} Be6 {[%emt 0:01:28]} 17. Qxc6 {[%emt 0:12:42]} Qxd3 {[%emt 0:03:10]} 18. Bf4 {[%emt 0:05:17]} Bd5 {[%emt 0:02:16]} 19. Qd7 {[%emt 0:02:18]} Bc5 {[%emt 0:10:01]} 20. Nd2 {[%emt 0:03:38]} Rfd8 {[%emt 0:04:52]} 21. Qg4 {[%emt 0:01:27]} Be6 {[%emt 0:02:25]} 22. Qf3 {[%emt 0:03:02]} Qc2 {[%emt 0:00:30]} 23. b4 {[%emt 0:04:40]} Bd5 {[%emt 0:05:30]} 24. Qg3 {[%emt 0:01:58]} Bf8 {[%emt 0:02:16]} 25. a3 {[%emt 0:05:39]} Be6 {[%emt 0:01:32]} 26. Rac1 {[%emt 0:02:48]} Qb2 {[%emt 0:05:02]} 27. Ne4 {[%emt 0:03:15]} Qxa3 {[%emt 0:04:01]} 28. Nf6+ {[%emt 0:00:33]} Kh8 {[%emt 0:00:33]} 29. Be5 {[%emt 0:02:26]} Bf5 {[%emt 0:05:45]} 30. Qg5 {[%emt 0:01:25]} Bg6 {[%emt 0:01:04]} 31. f4 {[%emt 0:02:10]} Be7 {[%emt 0:06:32]} 32. f5 {[%emt 0:01:14]} gxf6 {[%emt 0:01:30]} 33. Bxf6+ {[%emt 0:00:12]} Bxf6 {[%emt 0:00:19]} 34. Qxf6+ {[%emt 0:00:09]} Kg8 {[%emt 0:00:08]} 35. fxg6 {[%emt 0:00:20]} fxg6 {[%emt 0:00:18]} 36. Rce1 {[%emt 0:03:09]} Rf8 {[%emt 0:02:04]} 37. Qe6+ {[%emt 0:00:21]} Kg7 {[%emt 0:02:10]} 38. Qd7+ {[%emt 0:01:17]} Kg8 {[%emt 0:03:26]} 39. Qd5+ {[%emt 0:01:27]} Kg7 {[%emt 0:00:11]} 40. Re7+ {[%emt 0:00:37]} Kh6 {[%emt 0:01:30]} 41. Qd2+ {[%emt 0:00:17]} Kh5 {[%emt 0:00:57]} 42. Rxh7+ {[%emt 0:00:11]} Kg4 {[%emt 0:00:12]} 43. h3+ {[%emt 0:00:09]} Kg3 {[%emt 0:00:18]} 44. Qg5# {[%emt 0:01:07]} 1-0

[Event "FIDE WCCC Girls-10 2024"]
[Site "Montesilvano"]
[Date "2024.11.23"]
[Round "8.24"]
[White "Smilic, Nina"]
[Black "Nguyen, Lam Vy Le"]
[Result "0-1"]
[Annotator "NA RC"]
[ECO "E21"]
[WhiteElo "1540"]
[BlackElo "1728"]
[PlyCount "88"]
[EventDate "2024.11.18"]
[EventType "swiss"]
[EventCountry "ITA"]
[SourceTitle "playchess.com"]
[Source "ChessBase"]
[SourceQuality "1"]
[TimeControl "5400+30"]

1. d4 {[%emt 0:00:01]} Nf6 {[%emt 0:00:06]} 2. Nf3 {[%emt 0:00:23]} e6 {[%emt 0:00:07]} 3. c4 {[%emt 0:00:06]} b6 {[%emt 0:00:09]} 4. Nc3 {[%emt 0:00:08]} Bb4 {[%emt 0:00:13]} 5. Bd2 {[%emt 0:00:18]} Bb7 {[%emt 0:00:28]} 6. e3 {[%emt 0:00:15]} Bxc3 {[%emt 0:01:09]} 7. Bxc3 {[%emt 0:00:10]} Ne4 {[%emt 0:00:23]} 8. Bd3 {[%emt 0:01:07]} Nxc3 {[%emt 0:01:40]} 9. bxc3 {[%emt 0:00:08]} f5 {[%emt 0:00:56]} 10. O-O {[%emt 0:02:05]} O-O {[%emt 0:01:36]} 11. Re1 {[%emt 0:01:53]} d6 {[%emt 0:02:29]} 12. e4 {[%emt 0:04:21]} Nd7 {[%emt 0:05:18]} 13. Qe2 {[%emt 0:04:14]} f4 {[%emt 0:07:50]} 14. Rab1 {[%emt 0:08:50]} Qe7 {[%emt 0:08:15]} 15. Bc2 {[%emt 0:11:24]} e5 {[%emt 0:08:08]} 16. a4 {[%emt 0:04:04]} a5 {[%emt 0:04:12]} 17. Bb3 {[%emt 0:11:42]} Kh8 {[%emt 0:03:15]} 18. Bc2 {[%emt 0:07:15]} Rae8 {[%emt 0:06:41]} 19. Rb2 {[%emt 0:09:09]} Nf6 {[%emt 0:09:42]} 20. Nd2 {[%emt 0:00:31]} Bc8 {[%emt 0:06:28]} 21. h3 {[%emt 0:05:58]} Qf7 {[%emt 0:02:58]} 22. Bb3 {[%emt 0:06:58]} Qg6 {[%emt 0:03:05]} 23. Qf3 {[%emt 0:00:51]} Nd7 {[%emt 0:02:37]} 24. Nb1 {[%emt 0:03:49]} Bb7 {[%emt 0:05:30]} 25. Bc2 {[%emt 0:00:26]} Qf6 {[%emt 0:01:31]} 26. Qd3 {[%emt 0:04:12]} Qh4 {[%emt 0:04:00]} 27. Qf3 {[%emt 0:02:29]} Qf6 {[%emt 0:02:38]} 28. Qd3 {[%emt 0:00:51]} g5 {[%emt 0:02:29]} 29. Bd1 {[%emt 0:01:22]} Qe7 {[%emt 0:01:52]} 30. Nd2 {[%emt 0:00:50]} Nf6 {[%emt 0:00:27]} 31. d5 {[%emt 0:01:05]} Rg8 {[%emt 0:00:46]} 32. Qc2 {[%emt 0:03:58]} Bc8 {[%emt 0:00:53]} 33. f3 {[%emt 0:02:29]} Qg7 {[%emt 0:00:57]} 34. Kf2 {[%emt 0:01:34]} Qh6 {[%emt 0:00:08]} 35. Rg1 {[%emt 0:00:55]} Qh4+ {[%emt 0:00:37]} 36. Ke2 {[%emt 0:00:36]} Nd7 {[%emt 0:00:52]} 37. Nf1 {[%emt 0:01:02]} Ba6 {[%emt 0:00:13]} 38. Qb3 {[%emt 0:00:35]} Nc5 {[%emt 0:00:18]} 39. Qa2 {[%emt 0:00:29]} Qh5 {[%emt 0:01:05]} 40. Kd2 {[%emt 0:00:58]} Rc8 {[%emt 0:00:42]} 41. Be2 {[%emt 0:00:52]} Qh4 {[%emt 0:00:18]} 42. Nh2 {[%emt 0:00:35]} Qf2 {[%emt 0:00:23]} 43. Rbb1 {[%emt 0:00:20]} Qe3+ {[%emt 0:00:28]} 44. Kc2 {[%emt 0:00:30]} Qxe2+ {[%emt 0:00:04]} 0-1

[Event "FIDE WCCC Girls-10 2024"]
[Site "Montesilvano"]
[Date "2024.11.23"]
[Round "8.25"]
[White "Tu, Tiffany"]
[Black "Minzat, Victoria"]
[Result "1-0"]
[Annotator "NA RC"]
[ECO "C66"]
[WhiteElo "1687"]
[BlackElo "1505"]
[PlyCount "51"]
[EventDate "2024.11.18"]
[EventType "swiss"]
[EventCountry "ITA"]
[SourceTitle "playchess.com"]
[Source "ChessBase"]
[SourceQuality "1"]
[TimeControl "5400+30"]

1. e4 {[%emt 0:00:04]} e5 {[%emt 0:00:03]} 2. Nf3 {[%emt 0:00:10]} Nc6 {[%emt 0:00:10]} 3. Bb5 {[%emt 0:00:08]} d6 {[%emt 0:00:31]} 4. d4 {[%emt 0:00:30]} exd4 {[%emt 0:00:16]} 5. Nxd4 {[%emt 0:00:14]} Bd7 {[%emt 0:00:11]} 6. Bxc6 {[%emt 0:01:02]} Bxc6 {[%emt 0:00:45]} 7. Nxc6 {[%emt 0:01:36]} bxc6 {[%emt 0:00:05]} 8. Nc3 {[%emt 0:00:29]} Nf6 {[%emt 0:00:22]} 9. O-O {[%emt 0:00:49]} Be7 {[%emt 0:00:25]} 10. Qf3 {[%emt 0:01:09]} O-O {[%emt 0:00:38]} 11. Bf4 {[%emt 0:06:27]} d5 {[%emt 0:02:02]} 12. Rad1 {[%emt 0:04:38]} Bb4 {[%emt 0:04:07]} 13. exd5 {[%emt 0:18:28]} cxd5 {[%emt 0:01:19]} 14. Nxd5 {[%emt 0:02:30]} Nxd5 {[%emt 0:00:20]} 15. Rxd5 {[%emt 0:04:39]} Qe7 {[%emt 0:01:31]} 16. c3 {[%emt 0:01:57]} Bd6 {[%emt 0:00:29]} 17. Be3 {[%emt 0:08:02]} Qh4 {[%emt 0:07:01]} 18. Rh5 {[%emt 0:03:02]} Qc4 {[%emt 0:01:25]} 19. Bd4 {[%emt 0:02:00]} Qe6 {[%emt 0:01:41]} 20. Rh3 {[%emt 0:09:56]} Qxa2 {[%emt 0:06:41]} 21. Qh5 {[%emt 0:01:44]} h6 {[%emt 0:00:47]} 22. Bxg7 {[%emt 0:00:54]} Rfe8 {[%emt 0:01:09]} 23. Qxh6 {[%emt 0:00:19]} f5 {[%emt 0:00:46]} 24. Qg6 {[%emt 0:02:45]} Bxh2+ {[%emt 0:00:50]} 25. Rxh2 {[%emt 0:00:39]} Qe6 {[%emt 0:00:08]} 26. Rh8# {[%emt 0:00:14]} 1-0